[Event "*** SCC Grand Prix: Titled Tuesday Blitz"]
[Site "Chess.com"]
[Date "2020.06.02"]
[Round "9"]
[White "Jospem"]
[Black "Arjun2002"]
[Result "1-0"]
[WhiteElo "2869"]
[BlackElo "2650"]
[TimeControl "180+1"]
[EndTime "11:49:16 PDT"]
[Termination "Jospem won by checkmate"]

1. c4 {[%clk 0:03:00.9]} 1... c6 {[%clk 0:02:59.7]} 2. Nf3 {[%clk 0:03:00.7]}
2... d5 {[%clk 0:02:59.8]} 3. g3 {[%clk 0:03:01.6]} 3... Nf6 {[%clk 0:02:59.7]}
4. Bg2 {[%clk 0:03:01.6]} 4... Bg4 {[%clk 0:02:58.9]} 5. Ne5 {[%clk 0:03:01.4]}
5... Be6 {[%clk 0:02:58.9]} 6. cxd5 {[%clk 0:03:02]} 6... Bxd5 {[%clk
0:02:59.8]} 7. Nf3 {[%clk 0:03:02.6]} 7... c5 {[%clk 0:03:00]} 8. Nc3 {[%clk
0:03:02.7]} 8... Bc6 {[%clk 0:02:59.8]} 9. O-O {[%clk 0:03:02.8]} 9... e6 {[%clk
0:02:57.9]} 10. d3 {[%clk 0:03:03.3]} 10... Be7 {[%clk 0:02:57.4]} 11. e4 {[%clk
0:03:03.8]} 11... b5 {[%clk 0:02:55]} 12. Qe2 {[%clk 0:02:59.8]} 12... b4 {[%clk
0:02:45.1]} 13. Nb1 {[%clk 0:02:52.8]} 13... Bb5 {[%clk 0:02:42.6]} 14. Rd1
{[%clk 0:02:52]} 14... Nc6 {[%clk 0:02:42.6]} 15. b3 {[%clk 0:02:49]} 15... O-O
{[%clk 0:02:29.9]} 16. Bb2 {[%clk 0:02:48.5]} 16... a5 {[%clk 0:02:30.1]} 17. a4
{[%clk 0:02:44.1]} 17... Ba6 {[%clk 0:02:29]} 18. Bf1 {[%clk 0:02:43.6]} 18...
Nd7 {[%clk 0:02:19.3]} 19. Nbd2 {[%clk 0:02:40.7]} 19... Bf6 {[%clk 0:02:19.4]}
20. e5 {[%clk 0:02:41.3]} 20... Be7 {[%clk 0:02:18.8]} 21. Nc4 {[%clk
0:02:41.7]} 21... Nb6 {[%clk 0:02:15.2]} 22. Bg2 {[%clk 0:02:41.8]} 22... Nd5
{[%clk 0:02:15]} 23. Rac1 {[%clk 0:02:42.1]} 23... Rc8 {[%clk 0:02:12.5]} 24. h4
{[%clk 0:02:41.8]} 24... h6 {[%clk 0:02:11.5]} 25. h5 {[%clk 0:02:41.4]} 25...
Qd7 {[%clk 0:02:04.6]} 26. Qe4 {[%clk 0:02:40.6]} 26... Rfd8 {[%clk 0:02:00.1]}
27. Qg4 {[%clk 0:02:28.8]} 27... Qe8 {[%clk 0:01:49]} 28. Nd6 {[%clk 0:02:19.7]}
28... Bxd6 {[%clk 0:01:43.6]} 29. exd6 {[%clk 0:02:20.6]} 29... f6 {[%clk
0:01:36.6]} 30. Rxc5 {[%clk 0:02:12]} 30... Ne5 {[%clk 0:01:31.7]} 31. Nxe5
{[%clk 0:01:50]} 31... Rxc5 {[%clk 0:01:31.3]} 32. Nc4 {[%clk 0:01:49.2]} 32...
Nc3 {[%clk 0:01:19.2]} 33. Re1 {[%clk 0:01:49]} 33... Bxc4 {[%clk 0:01:11.3]}
34. Qd4 {[%clk 0:01:23.8]} 34... Re5 {[%clk 0:00:30]} 35. Rxe5 {[%clk
0:01:22.6]} 35... fxe5 {[%clk 0:00:30.9]} 36. Qxc4 {[%clk 0:01:23.1]} 36... Rxd6
{[%clk 0:00:29.5]} 37. Bxc3 {[%clk 0:00:47.1]} 37... bxc3 {[%clk 0:00:29.7]} 38.
Qxc3 {[%clk 0:00:48]} 38... Rd4 {[%clk 0:00:28]} 39. Qxa5 {[%clk 0:00:36.6]}
39... Qxh5 {[%clk 0:00:27.6]} 40. Bf1 {[%clk 0:00:37.2]} 40... Qf3 {[%clk
0:00:23.4]} 41. Qxe5 {[%clk 0:00:32.5]} 41... Qd5 {[%clk 0:00:21.2]} 42. Qe3
{[%clk 0:00:25.3]} 42... Rb4 {[%clk 0:00:19.5]} 43. a5 {[%clk 0:00:18.1]} 43...
Rxb3 {[%clk 0:00:19.1]} 44. a6 {[%clk 0:00:18.5]} 44... Ra3 {[%clk 0:00:19.4]}
45. a7 {[%clk 0:00:17]} 45... Qd7 {[%clk 0:00:19.6]} 46. Bh3 {[%clk 0:00:12.5]}
46... Qxa7 {[%clk 0:00:19]} 47. Qxe6+ {[%clk 0:00:12.2]} 47... Kf8 {[%clk
0:00:18.4]} 48. Qd6+ {[%clk 0:00:11.4]} 48... Qe7 {[%clk 0:00:17.2]} 49. Qb8+
{[%clk 0:00:11]} 49... Qe8 {[%clk 0:00:16.6]} 50. Qb4+ {[%clk 0:00:08.8]} 50...
Qe7 {[%clk 0:00:16.8]} 51. Qb8+ {[%clk 0:00:08.5]} 51... Qe8 {[%clk 0:00:17]}
52. Qd6+ {[%clk 0:00:04.4]} 52... Qe7 {[%clk 0:00:17.3]} 53. Qd4 {[%clk
0:00:03.5]} 53... Ra6 {[%clk 0:00:13.4]} 54. Bf5 {[%clk 0:00:03.4]} 54... Rd6
{[%clk 0:00:13.1]} 55. Qc4 {[%clk 0:00:02]} 55... Qe1+ {[%clk 0:00:12]} 56. Kg2
{[%clk 0:00:02.3]} 56... Qe5 {[%clk 0:00:09.5]} 57. Be4 {[%clk 0:00:02.4]} 57...
Rd8 {[%clk 0:00:07.7]} 58. Qb4+ {[%clk 0:00:02.6]} 58... Qd6 {[%clk 0:00:07.9]}
59. Qc4 {[%clk 0:00:03]} 59... Qd4 {[%clk 0:00:07.3]} 60. Qb3 {[%clk 0:00:03]}
60... Qd6 {[%clk 0:00:07.3]} 61. Qb7 {[%clk 0:00:03]} 61... Qd7 {[%clk
0:00:06.9]} 62. Qa6 {[%clk 0:00:03.1]} 62... Qd6 {[%clk 0:00:07.1]} 63. Qb5
{[%clk 0:00:03.4]} 63... Qd7 {[%clk 0:00:07.2]} 64. Qh5 {[%clk 0:00:03.6]} 64...
Qf7 {[%clk 0:00:06.6]} 65. Qh4 {[%clk 0:00:04.2]} 65... Qf6 {[%clk 0:00:05.7]}
66. Qg4 {[%clk 0:00:04.5]} 66... Ke7 {[%clk 0:00:05.5]} 67. Qe2 {[%clk
0:00:03.7]} 67... Kf8 {[%clk 0:00:04.9]} 68. f4 {[%clk 0:00:04.4]} 68... g5
{[%clk 0:00:05.1]} 69. Kf3 {[%clk 0:00:03.2]} 69... gxf4 {[%clk 0:00:04.7]} 70.
gxf4 {[%clk 0:00:04.1]} 70... Rb8 {[%clk 0:00:04.8]} 71. Qg2 {[%clk 0:00:03.4]}
71... Rb2 {[%clk 0:00:04.5]} 72. Qh3 {[%clk 0:00:03.8]} 72... Qb6 {[%clk
0:00:03.9]} 73. Qf5+ {[%clk 0:00:02.9]} 73... Ke7 {[%clk 0:00:02.7]} 74. Qh7+
{[%clk 0:00:02.9]} 74... Kd6 {[%clk 0:00:02.5]} 75. Qxh6+ {[%clk 0:00:03]} 75...
Kc5 {[%clk 0:00:02.8]} 76. Qf8+ {[%clk 0:00:03.4]} 76... Kd4 {[%clk 0:00:02.7]}
77. Qg7+ {[%clk 0:00:02.7]} 77... Kc5 {[%clk 0:00:02.5]} 78. Qe7+ {[%clk
0:00:02.8]} 78... Kd4 {[%clk 0:00:02.9]} 79. Qe5# {[%clk 0:00:02.3]} 1-0

[Event "*** SCC Grand Prix: Titled Tuesday Blitz"]
[Site "Chess.com"]
[Date "2020.06.02"]
[Round "9"]
[White "Zmof"]
[Black "Konovalova_Vera"]
[Result "1/2-1/2"]
[WhiteElo "2211"]
[BlackElo "2148"]
[TimeControl "180+1"]
[EndTime "11:49:30 PDT"]
[Termination "Game drawn by repetition"]

1. e4 {[%clk 0:03:00.9]} 1... c6 {[%clk 0:02:59.4]} 2. d4 {[%clk 0:03:00.2]}
2... d5 {[%clk 0:02:59.8]} 3. Nc3 {[%clk 0:03:00.7]} 3... dxe4 {[%clk
0:02:59.4]} 4. Nxe4 {[%clk 0:03:01.1]} 4... Bf5 {[%clk 0:02:59.2]} 5. Ng3 {[%clk
0:03:01]} 5... Bg6 {[%clk 0:02:59.1]} 6. h4 {[%clk 0:03:01.5]} 6... h6 {[%clk
0:02:58.7]} 7. Nf3 {[%clk 0:03:01.5]} 7... Nd7 {[%clk 0:02:57.8]} 8. h5 {[%clk
0:03:01.4]} 8... Bh7 {[%clk 0:02:57.3]} 9. Bd3 {[%clk 0:03:02.2]} 9... Bxd3
{[%clk 0:02:57.5]} 10. Qxd3 {[%clk 0:03:02.9]} 10... Qc7 {[%clk 0:02:57.7]} 11.
Bd2 {[%clk 0:03:01.8]} 11... e6 {[%clk 0:02:56.3]} 12. O-O-O {[%clk 0:03:01.1]}
12... Ngf6 {[%clk 0:02:55.7]} 13. Ne4 {[%clk 0:03:00.1]} 13... Nxe4 {[%clk
0:02:55.1]} 14. Qxe4 {[%clk 0:03:00.8]} 14... Nf6 {[%clk 0:02:55.3]} 15. Qe2
{[%clk 0:03:01.2]} 15... Bd6 {[%clk 0:02:55.1]} 16. g3 {[%clk 0:03:01.6]} 16...
O-O-O {[%clk 0:02:54.3]} 17. c4 {[%clk 0:02:59.3]} 17... c5 {[%clk 0:02:53]} 18.
Bc3 {[%clk 0:02:54.4]} 18... cxd4 {[%clk 0:02:47.6]} 19. Nxd4 {[%clk 0:02:53.7]}
19... a6 {[%clk 0:02:46.6]} 20. Kb1 {[%clk 0:02:53.2]} 20... Rd7 {[%clk
0:02:37.7]} 21. Rc1 {[%clk 0:02:50.6]} 21... Bc5 {[%clk 0:02:31.5]} 22. Nb3
{[%clk 0:02:49.4]} 22... Rhd8 {[%clk 0:02:27.8]} 23. a3 {[%clk 0:02:22.5]} 23...
Qb6 {[%clk 0:02:16.2]} 24. Nxc5 {[%clk 0:02:19.5]} 24... Qxc5 {[%clk 0:02:16.2]}
25. Bb4 {[%clk 0:01:44.2]} 25... Qf5+ {[%clk 0:02:13.7]} 26. Ka2 {[%clk
0:01:39.6]} 26... Qd3 {[%clk 0:02:03.9]} 27. Qe5 {[%clk 0:01:27.3]} 27... Qf5
{[%clk 0:01:52]} 28. Qxf5 {[%clk 0:01:18.6]} 28... exf5 {[%clk 0:01:51.5]} 29.
Bc3 {[%clk 0:01:19.5]} 29... Rd6 {[%clk 0:01:43]} 30. Rhe1 {[%clk 0:01:13.6]}
30... Re8 {[%clk 0:01:38.8]} 31. Bxf6 {[%clk 0:01:11.4]} 31... Rxe1 {[%clk
0:01:38.1]} 32. Rxe1 {[%clk 0:01:10.8]} 32... Rxf6 {[%clk 0:01:36.3]} 33. Re7
{[%clk 0:01:10.6]} 33... f4 {[%clk 0:01:34.2]} 34. g4 {[%clk 0:01:08.1]} 34...
f3 {[%clk 0:01:30.8]} 35. Kb3 {[%clk 0:01:06.1]} 35... Rf4 {[%clk 0:01:26.6]}
36. Kc3 {[%clk 0:01:04.8]} 36... Rxg4 {[%clk 0:01:19.8]} 37. Rxf7 {[%clk
0:01:04.4]} 37... Rh4 {[%clk 0:01:19.1]} 38. Rxf3 {[%clk 0:01:03.3]} 38... Rxh5
{[%clk 0:01:18.9]} 39. Rf8+ {[%clk 0:01:03.4]} 39... Kc7 {[%clk 0:01:15.5]} 40.
Rf7+ {[%clk 0:01:04]} 40... Kc6 {[%clk 0:01:16]} 41. Rxg7 {[%clk 0:01:04.6]}
41... Rh2 {[%clk 0:01:14.9]} 42. Rf7 {[%clk 0:01:02]} 42... h5 {[%clk
0:01:14.4]} 43. b4 {[%clk 0:01:01.1]} 43... Rh3+ {[%clk 0:01:10.6]} 44. Kb2
{[%clk 0:00:57.6]} 44... h4 {[%clk 0:01:10.6]} 45. a4 {[%clk 0:00:56.8]} 45...
Rh2 {[%clk 0:01:08.4]} 46. Rf5 {[%clk 0:00:54.2]} 46... h3 {[%clk 0:01:07.7]}
47. b5+ {[%clk 0:00:54.4]} 47... axb5 {[%clk 0:01:07]} 48. axb5+ {[%clk
0:00:53.4]} 48... Kb6 {[%clk 0:01:04]} 49. Kb3 {[%clk 0:00:42.6]} 49... Rh1
{[%clk 0:01:03.4]} 50. Rh5 {[%clk 0:00:41.9]} 50... h2 {[%clk 0:01:01.8]} 51.
Kb2 {[%clk 0:00:42.5]} 51... Ka5 {[%clk 0:00:58.3]} 52. f4 {[%clk 0:00:40.4]}
52... Kb4 {[%clk 0:00:54.3]} 53. f5 {[%clk 0:00:40]} 53... Kxc4 {[%clk
0:00:51.8]} 54. f6 {[%clk 0:00:39.9]} 54... Rf1 {[%clk 0:00:46]} 55. Rxh2 {[%clk
0:00:31.4]} 55... Rxf6 {[%clk 0:00:43.8]} 56. Rh5 {[%clk 0:00:25.8]} 56... Rb6
{[%clk 0:00:38.1]} 57. Kc1 {[%clk 0:00:23.7]} 57... Rxb5 {[%clk 0:00:35.4]} 58.
Rh3 {[%clk 0:00:24.4]} 58... Rb3 {[%clk 0:00:32.2]} 59. Rh4+ {[%clk 0:00:23.5]}
59... Kc3 {[%clk 0:00:29.7]} 60. Rh3+ {[%clk 0:00:23]} 60... Kb4 {[%clk
0:00:28.7]} 61. Rh4+ {[%clk 0:00:20.7]} 61... Ka3 {[%clk 0:00:21.8]} 62. Rh7
{[%clk 0:00:18.4]} 62... b5 {[%clk 0:00:21.2]} 63. Kc2 {[%clk 0:00:18.3]} 63...
Rg3 {[%clk 0:00:20]} 64. Ra7+ {[%clk 0:00:16.8]} 64... Kb4 {[%clk 0:00:19.8]}
65. Rh7 {[%clk 0:00:15.5]} 65... Rc3+ {[%clk 0:00:19.2]} 66. Kb2 {[%clk
0:00:15.4]} 66... Rc4 {[%clk 0:00:19.2]} 67. Rh3 {[%clk 0:00:14.5]} 67... Rg4
{[%clk 0:00:18.7]} 68. Rf3 {[%clk 0:00:14.1]} 68... Rg2+ {[%clk 0:00:17.9]} 69.
Kb1 {[%clk 0:00:14.5]} 69... Ka4 {[%clk 0:00:18]} 70. Re3 {[%clk 0:00:14.7]}
70... b4 {[%clk 0:00:18.1]} 71. Rf3 {[%clk 0:00:15.1]} 71... b3 {[%clk
0:00:18.1]} 72. Rf8 {[%clk 0:00:15.2]} 72... Kb4 {[%clk 0:00:15.3]} 73. Rb8+
{[%clk 0:00:14.2]} 73... Kc3 {[%clk 0:00:15.4]} 74. Rc8+ {[%clk 0:00:14.3]}
74... Kd4 {[%clk 0:00:15.4]} 75. Rd8+ {[%clk 0:00:14.6]} 75... Kc4 {[%clk
0:00:15.2]} 76. Rc8+ {[%clk 0:00:14.8]} 76... Kd5 {[%clk 0:00:14.5]} 77. Rd8+
{[%clk 0:00:15.1]} 77... Kc6 {[%clk 0:00:12.8]} 78. Rb8 {[%clk 0:00:14.9]} 78...
Kc5 {[%clk 0:00:10.3]} 79. Rxb3 {[%clk 0:00:06.6]} 79... Rg1+ {[%clk 0:00:10.3]}
80. Kb2 {[%clk 0:00:03.3]} 80... Rg2+ {[%clk 0:00:10.5]} 81. Kb1 {[%clk
0:00:01.6]} 81... Rf2 {[%clk 0:00:09.7]} 82. Rc3+ {[%clk 0:00:01.4]} 82... Kb4
{[%clk 0:00:08.9]} 83. Rc2 {[%clk 0:00:02.1]} 83... Rf1+ {[%clk 0:00:08.3]} 84.
Kb2 {[%clk 0:00:02.2]} 84... Rf3 {[%clk 0:00:08.5]} 85. Rd2 {[%clk 0:00:02.8]}
85... Rb3+ {[%clk 0:00:07.9]} 86. Kc2 {[%clk 0:00:03.4]} 86... Rc3+ {[%clk
0:00:08.3]} 87. Kb2 {[%clk 0:00:04]} 87... Rb3+ {[%clk 0:00:08.8]} 88. Kc2
{[%clk 0:00:04.4]} 88... Rc3+ {[%clk 0:00:09.2]} 89. Kb2 {[%clk 0:00:05]} 89...
Rb3+ {[%clk 0:00:09.5]} 1/2-1/2

[Event "*** SCC Grand Prix: Titled Tuesday Blitz"]
[Site "Chess.com"]
[Date "2020.06.02"]
[Round "9"]
[White "seorobert1971"]
[Black "Mikedannnn"]
[Result "1/2-1/2"]
[WhiteElo "2642"]
[BlackElo "2471"]
[TimeControl "180+1"]
[EndTime "11:49:43 PDT"]
[Termination "Game drawn by repetition"]

1. d4 {[%clk 0:03:00.9]} 1... Nf6 {[%clk 0:02:59.6]} 2. c4 {[%clk 0:03:00]} 2...
c5 {[%clk 0:02:58.2]} 3. d5 {[%clk 0:02:59.2]} 3... e6 {[%clk 0:02:58.6]} 4. Nc3
{[%clk 0:02:59.6]} 4... exd5 {[%clk 0:02:59.2]} 5. cxd5 {[%clk 0:03:00.5]} 5...
g6 {[%clk 0:03:00]} 6. e4 {[%clk 0:03:00.6]} 6... d6 {[%clk 0:02:59.5]} 7. h3
{[%clk 0:03:00.2]} 7... Bg7 {[%clk 0:02:59.7]} 8. Nf3 {[%clk 0:03:00.5]} 8...
O-O {[%clk 0:03:00.3]} 9. Be2 {[%clk 0:03:00.8]} 9... Re8 {[%clk 0:03:00.3]} 10.
Nd2 {[%clk 0:03:01]} 10... Na6 {[%clk 0:02:54.4]} 11. O-O {[%clk 0:03:00.3]}
11... Rb8 {[%clk 0:02:53.4]} 12. Re1 {[%clk 0:02:54.6]} 12... Nc7 {[%clk
0:02:53.3]} 13. a4 {[%clk 0:02:51.8]} 13... b6 {[%clk 0:02:53.5]} 14. Bf1 {[%clk
0:02:47.9]} 14... a6 {[%clk 0:02:41.3]} 15. Nc4 {[%clk 0:02:46.8]} 15... b5
{[%clk 0:02:41.4]} 16. axb5 {[%clk 0:02:43.8]} 16... axb5 {[%clk 0:02:42.3]} 17.
Na5 {[%clk 0:02:43.8]} 17... Bd7 {[%clk 0:02:42.7]} 18. Nc6 {[%clk 0:02:18]}
18... Bxc6 {[%clk 0:02:42.7]} 19. dxc6 {[%clk 0:02:18.9]} 19... b4 {[%clk
0:02:43.1]} 20. Nd5 {[%clk 0:02:19.2]} 20... Ncxd5 {[%clk 0:02:37.8]} 21. exd5
{[%clk 0:02:18.3]} 21... Rxe1 {[%clk 0:02:38.7]} 22. Qxe1 {[%clk 0:02:18.5]}
22... Nxd5 {[%clk 0:02:39.6]} 23. Ra7 {[%clk 0:02:10.7]} 23... Qb6 {[%clk
0:02:33.9]} 24. Ra6 {[%clk 0:02:06.5]} 24... Qc7 {[%clk 0:02:30.9]} 25. Qe4
{[%clk 0:02:04.3]} 25... Nf6 {[%clk 0:02:30.1]} 26. Qc4 {[%clk 0:02:02.1]} 26...
h6 {[%clk 0:02:19.7]} 27. Bf4 {[%clk 0:02:01.5]} 27... Re8 {[%clk 0:01:37.3]}
28. Qxc5 {[%clk 0:01:56.3]} 28... dxc5 {[%clk 0:01:34.8]} 29. Bxc7 {[%clk
0:01:56.2]} 29... Nd5 {[%clk 0:01:30]} 30. Bd6 {[%clk 0:01:51.4]} 30... Bxb2
{[%clk 0:01:23.1]} 31. Bc4 {[%clk 0:01:41]} 31... Nf6 {[%clk 0:00:37.6]} 32.
Bxc5 {[%clk 0:01:29.7]} 32... Re1+ {[%clk 0:00:37.3]} 33. Kh2 {[%clk 0:01:28.8]}
33... Be5+ {[%clk 0:00:37.9]} 34. g3 {[%clk 0:01:29]} 34... Rc1 {[%clk
0:00:37.9]} 35. f4 {[%clk 0:01:19.4]} 35... Rc2+ {[%clk 0:00:32.5]} 36. Kg1
{[%clk 0:01:15.5]} 36... Bc7 {[%clk 0:00:19.9]} 37. Ra8+ {[%clk 0:01:08.1]}
37... Kg7 {[%clk 0:00:19.5]} 38. Bf8+ {[%clk 0:01:07.3]} 38... Kh7 {[%clk
0:00:19]} 39. Bxf7 {[%clk 0:01:03.7]} 39... Rxc6 {[%clk 0:00:17.7]} 40. Bxb4
{[%clk 0:01:03.6]} 40... Ne4 {[%clk 0:00:16.9]} 41. Kg2 {[%clk 0:00:56.3]} 41...
Nd6 {[%clk 0:00:14.7]} 42. Bd5 {[%clk 0:00:55.2]} 42... Rc2+ {[%clk 0:00:14.9]}
43. Kf3 {[%clk 0:00:55.3]} 43... Nf5 {[%clk 0:00:15.4]} 44. Ra7 {[%clk
0:00:53.1]} 44... Kh8 {[%clk 0:00:12.7]} 45. g4 {[%clk 0:00:52.8]} 45... Nd4+
{[%clk 0:00:11.6]} 46. Ke4 {[%clk 0:00:52.8]} 46... Nb5 {[%clk 0:00:12.1]} 47.
Rb7 {[%clk 0:00:51.6]} 47... Nc3+ {[%clk 0:00:10.9]} 48. Bxc3+ {[%clk
0:00:48.9]} 48... Rxc3 {[%clk 0:00:11.8]} 49. h4 {[%clk 0:00:48.6]} 49... Rc1
{[%clk 0:00:09]} 50. f5 {[%clk 0:00:46.9]} 50... gxf5+ {[%clk 0:00:08.5]} 51.
Kxf5 {[%clk 0:00:44.4]} 51... Kg7 {[%clk 0:00:08.9]} 52. Ra7 {[%clk 0:00:40.5]}
52... Rc5 {[%clk 0:00:08.9]} 53. Ke4 {[%clk 0:00:39.7]} 53... Kf6 {[%clk
0:00:08.7]} 54. Ra6+ {[%clk 0:00:38]} 54... Kg7 {[%clk 0:00:09]} 55. Re6 {[%clk
0:00:38.1]} 55... Rc1 {[%clk 0:00:08.3]} 56. Re7+ {[%clk 0:00:37.3]} 56... Kf6
{[%clk 0:00:08.8]} 57. Rf7+ {[%clk 0:00:37.2]} 57... Kg6 {[%clk 0:00:09.3]} 58.
Rd7 {[%clk 0:00:31.1]} 58... Re1+ {[%clk 0:00:08.7]} 59. Kf3 {[%clk 0:00:31.1]}
59... Be5 {[%clk 0:00:08.7]} 60. Re7 {[%clk 0:00:27.9]} 60... Bc3 {[%clk
0:00:07.6]} 61. Rc7 {[%clk 0:00:24.1]} 61... Be5 {[%clk 0:00:07]} 62. Rc6+
{[%clk 0:00:24.1]} 62... Kg7 {[%clk 0:00:07.5]} 63. Be4 {[%clk 0:00:24.3]} 63...
Rf1+ {[%clk 0:00:07.3]} 64. Ke2 {[%clk 0:00:23.1]} 64... Rf6 {[%clk 0:00:07.9]}
65. Rc5 {[%clk 0:00:22.2]} 65... Re6 {[%clk 0:00:08.2]} 66. Kf3 {[%clk
0:00:20.5]} 66... Re7 {[%clk 0:00:08.5]} 67. Rc6 {[%clk 0:00:20.4]} 67... Bf6
{[%clk 0:00:08.8]} 68. h5 {[%clk 0:00:19.1]} 68... Rd7 {[%clk 0:00:08.9]} 69.
Bf5 {[%clk 0:00:19.1]} 69... Re7 {[%clk 0:00:09.3]} 70. Rc8 {[%clk 0:00:18.4]}
70... Rf7 {[%clk 0:00:07.6]} 71. Be6 {[%clk 0:00:17.8]} 71... Re7 {[%clk
0:00:08]} 72. Bd5 {[%clk 0:00:17.2]} 72... Kh7 {[%clk 0:00:07.8]} 73. Be4+
{[%clk 0:00:16.9]} 73... Kg7 {[%clk 0:00:08.2]} 74. Bg6 {[%clk 0:00:16.6]} 74...
Rd7 {[%clk 0:00:07.6]} 75. Bf5 {[%clk 0:00:16.5]} 75... Re7 {[%clk 0:00:07.4]}
76. Rb8 {[%clk 0:00:16.1]} 76... Bg5 {[%clk 0:00:07.8]} 77. Rb6 {[%clk 0:00:15]}
77... Re3+ {[%clk 0:00:08]} 78. Kf2 {[%clk 0:00:14.7]} 78... Re7 {[%clk
0:00:08.7]} 79. Rg6+ {[%clk 0:00:14.9]} 79... Kf7 {[%clk 0:00:09.2]} 80. Kf3
{[%clk 0:00:14.9]} 80... Ra7 {[%clk 0:00:08.2]} 81. Rc6 {[%clk 0:00:14.5]} 81...
Ra3+ {[%clk 0:00:08]} 82. Ke4 {[%clk 0:00:14.8]} 82... Ra7 {[%clk 0:00:08.7]}
83. Kd5 {[%clk 0:00:14.6]} 83... Re7 {[%clk 0:00:08.9]} 84. Be6+ {[%clk
0:00:14.3]} 84... Kg7 {[%clk 0:00:09.2]} 85. Rc8 {[%clk 0:00:13.7]} 85... Kf6
{[%clk 0:00:07.7]} 86. Rf8+ {[%clk 0:00:13.3]} 86... Kg7 {[%clk 0:00:07.6]} 87.
Rg8+ {[%clk 0:00:13.7]} 87... Kh7 {[%clk 0:00:08.1]} 88. Rg6 {[%clk 0:00:13.9]}
88... Rg7 {[%clk 0:00:07.3]} 89. Bf5 {[%clk 0:00:10.3]} 89... Rxg6 {[%clk
0:00:07.8]} 90. hxg6+ {[%clk 0:00:10.5]} 90... Kg7 {[%clk 0:00:08.7]} 91. Ke6
{[%clk 0:00:10.5]} 91... Bh4 {[%clk 0:00:09.6]} 92. Kd7 {[%clk 0:00:10.3]} 92...
Bg5 {[%clk 0:00:10.5]} 93. Ke6 {[%clk 0:00:10.8]} 93... Bh4 {[%clk 0:00:10.9]}
94. Kd7 {[%clk 0:00:11.1]} 94... Bg5 {[%clk 0:00:11.4]} 95. Ke6 {[%clk
0:00:11.7]} 1/2-1/2